fUSD/lending_fUSD_20241117
["ID","MTS","AMOUNT","RATE_DAILY","PERIOD"]
[342415597,1731837039803,-5071.43030025,0.0001,2]
[342415598,1731837039857,-57780.97843216,0.0001,2]
[342415599,1731837039938,-133437.63574834,0.0001,2]
[342415600,1731837039950,-7190.0529822,0.0001,2]
[342415601,1731837039962,-7738.16,0.0001,2]
[342415602,1731837039974,-259.52912442,0.0001,2]
[342415603,1731837039986,-1071.42453805,0.0001,2]
[342415604,1731837040047,-10104.94559846,0.0001,2]
[342415605,1731837040066,-628.30000001,0.0001,2]
[342415606,1731837040077,-1225.25719793,0.0001,2]
[342415608,1731837042774,-13353.19999999,0.0001,2]
[342415611,1731837043294,-1560.3978362,0.0001,2]
[342415612,1731837043306,-8285.48078144,0.0001,2]
[342415613,1731837043317,-1664.82863637,0.0001,2]
[342415614,1731837043328,-4478.2160278,0.0001,2]
[342415615,1731837043340,-257593.3107263,0.0001,2]
[342415616,1731837043349,-15943.32153208,0.0001,2]
[342415617,1731837043388,-1102.71095321,0.0001,2]
[342415618,1731837043399,-5879.87885681,0.0001,2]
[342415619,1731837043410,-4704.000003,0.0001,2]
[342415620,1731837043421,-1063.14,0.0001,2]
[342415621,1731837043433,-10604.76999973,0.0001,2]
[342415623,1731837045744,-150.0,9.999e-05,2]
[342415624,1731837045755,-750.76650117,0.0001,2]
[342415625,1731837045810,-4500.0,0.0001,2]
[342415626,1731837045939,-200.6204452,9.999e-05,3]
[342415627,1731837045948,-1681.32314051,0.0001,2]
[342415628,1731837045959,-4141.29819251,0.0001,2]
[342415629,1731837046117,-6945.61349988,0.0001,2]
[342415630,1731837046155,-2569.71859711,0.0001,2]
[342415634,1731837107795,265.28,8.399e-05,2]
[342415635,1731837134541,200.0,8.388e-05,2]
[342415636,1731837146142,250.0,8.388e-05,2]
[342415637,1731837163779,2908.79,8.219e-05,2]
[342415638,1731837255456,250.0,8.408e-05,2]
[342415639,1731837397477,166.17,8.452e-05,2]
[342415640,1731837434856,250.0,8.441e-05,2]
[342415641,1731837447688,50000.0,0.00024,60]
[342415642,1731837630794,50000.0,0.00024,60]
[342415643,1731837663167,1000.0,8.448e-05,2]
[342415644,1731837708041,23900.0,8.426e-05,2]
[342415645,1731837715024,50000.0,0.00024,60]
[342415646,1731837786090,416.0,8.457e-05,2]
[342415647,1731837791594,265.28,8.458e-05,2]
[342415649,1731837813692,152.71,8.458e-05,2]
[342415650,1731837813889,152.71,8.461e-05,2]
[342415651,1731837814095,152.71,8.463e-05,2]
[342415652,1731837814305,152.71,8.465e-05,2]
[342415653,1731837814507,152.71,8.467e-05,2]
[342415654,1731837814772,152.71,8.47e-05,2]
[342415655,1731837814984,152.71,8.472e-05,2]
[342415656,1731837815206,152.71,8.474e-05,2]
[342415657,1731837815400,152.71,8.476e-05,2]
[342415658,1731837815603,152.71,8.478e-05,2]
[342415659,1731837815987,152.71,8.481e-05,2]
[342415660,1731837816193,152.71,8.483e-05,2]
[342415661,1731837816404,152.71,8.485e-05,2]
[342415662,1731837816639,152.71,8.487e-05,2]
[342415663,1731837816846,152.71,8.49e-05,2]
[342415664,1731837817055,152.71,8.492e-05,2]
[342415665,1731837817257,152.71,8.494e-05,2]
[342415666,1731837818071,152.71,8.496e-05,2]
[342415667,1731837818108,152.71,8.498e-05,2]
[342415668,1731837818149,152.71,8.501e-05,2]
[342415669,1731837821950,250.0,8.458e-05,2]
[342415670,1731837850953,2763.35,8.219e-05,2]
[342415671,1731837869843,50000.0,0.00024,60]
[342415672,1731838011034,50000.0,0.00024,60]
[342415685,1731838232005,-250.0,8.65e-05,2]
[342415686,1731838232014,-62.02099594,8.654e-05,2]
[342415687,1731838232073,-105.03900406,8.654e-05,2]
[342415688,1731838232084,-250.0,8.688e-05,2]
[342415689,1731838232097,-68.60127487,9e-05,3]
[342415690,1731838232121,-731.39872513,9e-05,3]
[342415691,1731838232131,-1600.0,9.1e-05,3]
[342415692,1731838232140,-1142.0,9.109e-05,2]
[342415693,1731838232149,-1142.0,9.111e-05,2]
[342415694,1731838232159,-1142.0,9.114e-05,2]
[342415695,1731838232170,-1142.0,9.116e-05,2]
[342415696,1731838232179,-1142.0,9.119e-05,2]
[342415697,1731838232188,-1142.0,9.121e-05,2]
[342415698,1731838232198,-1142.0,9.123e-05,2]
[342415699,1731838232207,-1142.0,9.126e-05,2]
[342415700,1731838232218,-1142.0,9.128e-05,2]
[342415701,1731838232227,-1142.0,9.13e-05,2]
[342415702,1731838232236,-1142.0,9.133e-05,2]
[342415703,1731838232245,-1142.0,9.135e-05,2]
[342415704,1731838232255,-1142.0,9.138e-05,2]
[342415705,1731838232264,-1142.0,9.14e-05,2]
[342415706,1731838232273,-1142.0,9.142e-05,2]
[342415707,1731838232283,-1142.0,9.145e-05,2]
[342415708,1731838232292,-1142.0,9.147e-05,2]
[342415709,1731838232301,-1142.0,9.15e-05,2]
[342415710,1731838232311,-1142.0,9.152e-05,2]
[342415711,1731838232321,-1142.0,9.154e-05,2]
[342415712,1731838232330,-2500.0,9.2e-05,3]
[342415713,1731838232339,-150.0,9.2e-05,2]
[342415714,1731838232348,-3300.0,9.3e-05,3]
[342415715,1731838232358,-7646.346,9.36e-05,2]
[342415716,1731838232368,-4200.0,9.4e-05,3]
[342415717,1731838232378,-800.0,9.5e-05,3]
[342415718,1731838232387,-1000.0,9.505e-05,2]
[342415719,1731838232400,-150.0,9.507e-05,2]
[342415720,1731838232410,-416.0,9.514e-05,2]
[342415721,1731838232420,-800.0,9.6e-05,3]
[342415723,1731838232429,-784.42,9.641e-05,2]
[342415724,1731838232439,-763.76,9.641e-05,2]
[342415725,1731838232449,-763.76,9.641e-05,2]
[342415726,1731838232461,-763.76,9.641e-05,2]
[342415727,1731838232471,-1000.0,9.668e-05,2]
[342415728,1731838232481,-8989.89,9.67e-05,2]
[342415729,1731838232490,-3032.91,9.67e-05,2]
[342415730,1731838232500,-800.0,9.676e-05,2]
[342415732,1731838232509,-800.0,9.7e-05,3]
[342415734,1731838232519,-150.0,9.727e-05,2]
[342415736,1731838232528,-150.0,9.728e-05,2]
[342415738,1731838232538,-150.0,9.729e-05,2]
[342415739,1731838232547,-150.0,9.732e-05,2]
[342415741,1731838232557,-150.0,9.733e-05,2]
[342415743,1731838232567,-151.85401464,9.735e-05,2]
[342415745,1731838232576,-150.0,9.738e-05,2]
[342415747,1731838232586,-150.0,9.739e-05,2]
[342415748,1731838232595,-150.0,9.742e-05,2]
[342415749,1731838232604,-150.0,9.745e-05,2]
[342415751,1731838232614,-150.0,9.747e-05,2]
[342415752,1731838232623,-150.0,9.751e-05,2]
[342415754,1731838232633,-150.0,9.756e-05,2]
[342415756,1731838232642,-150.0,9.757e-05,2]
[342415757,1731838232652,-150.0,9.758e-05,2]
[342415759,1731838232662,-150.0,9.76e-05,2]
[342415761,1731838232672,-150.0,9.761e-05,2]
[342415762,1731838232682,-150.0,9.765e-05,2]
[342415764,1731838232692,-150.0,9.767e-05,2]
[342415766,1731838232702,-150.0,9.771e-05,2]
[342415767,1731838232713,-150.0,9.771e-05,2]
[342415769,1731838232723,-150.0,9.774e-05,2]
[342415771,1731838232732,-150.0,9.774e-05,2]
[342415773,1731838232742,-150.0,9.776e-05,2]
[342415774,1731838232752,-150.0,9.776e-05,2]
[342415776,1731838232761,-150.0,9.776e-05,2]
[342415778,1731838232771,-325.35,9.778e-05,2]
[342415780,1731838232781,-157.68,9.778e-05,2]
[342415782,1731838232790,-880.23,9.778e-05,2]
[342415783,1731838232800,-150.0,9.779e-05,2]
[342415785,1731838232809,-1500.0,9.785e-05,2]
[342415787,1731838232818,-150.0,9.786e-05,2]
[342415788,1731838232827,-150.0,9.786e-05,2]
[342415790,1731838232837,-150.0,9.788e-05,2]
[342415792,1731838232846,-150.0,9.788e-05,2]
[342415794,1731838232855,-150.0,9.791e-05,2]
[342415795,1731838232864,-150.0,9.793e-05,2]
[342415796,1731838232874,-150.0,9.794e-05,2]
[342415797,1731838232883,-800.0,9.8e-05,3]
[342415798,1731838232893,-5984.8989,9.8e-05,2]
[342415799,1731838232903,-150.0,9.806e-05,2]
[342415800,1731838232912,-150.0,9.81e-05,2]
[342415801,1731838232921,-150.0,9.81e-05,2]
[342415802,1731838232930,-150.0,9.817e-05,2]
[342415803,1731838232939,-150.0,9.819e-05,2]
[342415804,1731838232949,-150.0,9.822e-05,2]
[342415805,1731838232958,-150.0,9.824e-05,2]
[342415806,1731838232968,-150.0,9.825e-05,2]
[342415807,1731838232978,-150.0,9.829e-05,2]
[342415808,1731838232987,-150.0,9.83e-05,2]
[342415809,1731838232997,-150.0,9.832e-05,2]
[342415810,1731838233006,-150.0,9.842e-05,2]
[342415811,1731838233016,-150.0,9.843e-05,2]
[342415812,1731838233025,-3746.0,9.844e-05,2]
[342415813,1731838233035,-814.0,9.844e-05,2]
[342415814,1731838233045,-1260.0,9.844e-05,2]
[342415815,1731838233054,-921.0,9.844e-05,2]
[342415816,1731838233063,-3491.0,9.844e-05,2]
[342415817,1731838233073,-150.0,9.845e-05,2]
[342415818,1731838233083,-150.0,9.849e-05,2]
[342415819,1731838233096,-150.0,9.851e-05,2]
[342415820,1731838233106,-150.0,9.855e-05,2]
[342415821,1731838233116,-150.0,9.861e-05,2]
[342415822,1731838233126,-150.0,9.861e-05,2]
[342415823,1731838233136,-150.0,9.862e-05,2]
[342415824,1731838233145,-150.0,9.863e-05,2]
[342415825,1731838233155,-150.0,9.864e-05,2]
[342415826,1731838233165,-150.0,9.865e-05,2]
[342415827,1731838233176,-150.0,9.867e-05,2]
[342415828,1731838233187,-150.0,9.87e-05,2]
[342415829,1731838233196,-8205.1189,9.873e-05,2]
[342415830,1731838233206,-4908.3427,9.873e-05,2]
[342415831,1731838233219,-150.0,9.876e-05,2]
[342415832,1731838233229,-150.0,9.883e-05,2]
[342415833,1731838233239,-150.0,9.883e-05,2]
[342415834,1731838233248,-150.0,9.886e-05,2]
[342415835,1731838233258,-150.0,9.887e-05,2]
[342415836,1731838233268,-150.0,9.888e-05,2]
[342415837,1731838233278,-150.0,9.888e-05,2]
[342415838,1731838233288,-150.0,9.89e-05,2]
[342415839,1731838233298,-1500.0,9.897e-05,2]
[342415840,1731838233308,-17675.4627,9.9e-05,2]
[342415841,1731838233318,-1300.0,9.9e-05,3]
[342415842,1731838233327,-318391.36936458,9.9e-05,2]
[342415843,1731838233340,-4699.47748998,9.9e-05,2]
[342415844,1731838233363,-12480.0048839,9.9e-05,2]
[342415845,1731838233375,-901.52119637,9.9e-05,2]
[342415846,1731838233386,-30169.5137566,9.9e-05,2]
[342415847,1731838233398,-36519.0,9.9e-05,2]
[342415848,1731838233414,-3293.53093881,9.9e-05,2]
[342415849,1731838233426,-925.1775,9.9e-05,2]
[342415850,1731838233471,-4514.6,9.9e-05,2]
[342415851,1731838233483,-42550.5286632,9.9e-05,2]
[342415852,1731838233496,-16916.38476457,9.9e-05,2]
[342415855,1731838238115,-733.99255442,9.9e-05,2]
[342415856,1731838238265,-2682.394968,9.9e-05,2]
[342415857,1731838238356,-117287.06364269,9.9e-05,2]
[342415858,1731838238366,-150.0,9.901e-05,2]
[342415859,1731838238376,-150.0,9.903e-05,2]
[342415860,1731838238385,-150.0,9.904e-05,2]
[342415861,1731838238395,-150.0,9.906e-05,2]
[342415862,1731838238404,-150.0,9.911e-05,2]
[342415863,1731838238413,-150.0,9.912e-05,2]
[342415864,1731838238422,-150.0,9.915e-05,2]
[342415865,1731838238431,-150.0,9.916e-05,2]
[342415866,1731838238440,-1280.786,9.92e-05,2]
[342415867,1731838238449,-500.0,9.92e-05,2]
[342415868,1731838238459,-150.0,9.92e-05,2]
[342415869,1731838238472,-150.0,9.922e-05,2]
[342415870,1731838238481,-150.0,9.925e-05,2]
[342415871,1731838238490,-1500.0,9.941e-05,2]
[342415872,1731838238499,-150.0,9.941e-05,2]
[342415873,1731838238510,-150.0,9.946e-05,2]
[342415874,1731838238519,-150.0,9.946e-05,2]
[342415875,1731838238528,-150.0,9.95e-05,2]
[342415877,1731838238537,-150.0,9.953e-05,2]
[342415879,1731838238546,-150.0,9.953e-05,2]
[342415881,1731838238555,-150.0,9.955e-05,2]
[342415883,1731838238565,-150.0,9.955e-05,2]
[342415884,1731838238574,-150.0,9.959e-05,2]
[342415886,1731838238583,-150.0,9.965e-05,2]
[342415888,1731838238592,-150.0,9.966e-05,2]
[342415890,1731838238602,-150.0,9.968e-05,2]
[342415892,1731838238611,-150.0,9.969e-05,2]
[342415894,1731838238620,-183278.0,9.973e-05,2]
[342415895,1731838238629,-500.0,9.973e-05,2]
[342415897,1731838238639,-150.0,9.973e-05,2]
[342415899,1731838238649,-150.0,9.975e-05,2]
[342415901,1731838238658,-150.0,9.981e-05,2]
[342415902,1731838238668,-150.0,9.983e-05,2]
[342415904,1731838238678,-150.0,9.984e-05,2]
[342415905,1731838238688,-553.727409,9.987e-05,2]
[342415906,1731838238698,-1645.6437673,9.987e-05,2]
[342415907,1731838238707,-578.3079091,9.987e-05,2]
[342415908,1731838238718,-4755.45429289,9.991e-05,2]
[342415909,1731838238728,-512.7801066,9.993e-05,2]
[342415910,1731838238737,-471.8328043,9.993e-05,2]
[342415911,1731838238747,-1523.9509057,9.993e-05,2]
[342415912,1731838238756,-1402.2580442,9.993e-05,2]
[342415913,1731838238767,-150.0,9.994e-05,2]
[342415914,1731838238783,-13075.77670453,9.997e-05,2]
[342415915,1731838238795,-9412.55602872,9.998e-05,2]
[342415916,1731838238807,-550.59,9.998e-05,2]
[342415917,1731838238816,-493440.60216157,9.999e-05,2]
[342415918,1731838238827,-1132.04785538,9.999e-05,3]
[342415919,1731838238836,-1132.04785538,9.999e-05,3]
[342415920,1731838238845,-1132.04785538,9.999e-05,3]
[342415921,1731838238854,-1132.04785538,9.999e-05,3]
[342415922,1731838238865,-1132.04785538,9.999e-05,3]
[342415923,1731838238874,-150.0,9.999e-05,2]
[342415924,1731838238883,-150.0,9.999e-05,2]
[342415925,1731838238892,-150.0,9.999e-05,2]
[342415926,1731838238904,-150.0,9.999e-05,2]
[342415927,1731838238915,-217197.33753288,9.999e-05,2]
[342415928,1731838238929,-16961.47492516,9.999e-05,2]
[342415932,1731838240080,-535.50675799,9.999e-05,2]
[342415933,1731838240094,-335.0,9.999e-05,2]
[342415934,1731838240164,-18461.82562528,9.999e-05,2]
[342415935,1731838240176,-1276.7111422,9.999e-05,2]
[342415937,1731838243077,-304.44891002,9.999e-05,2]
[342415938,1731838243089,-91235.0,9.999e-05,2]
[342415939,1731838243102,-5086.58405462,9.999e-05,2]
[342415940,1731838243113,-3008.432636,9.999e-05,2]
[342415941,1731838243124,-1908.87296891,9.999e-05,2]
[342415942,1731838243135,-6590.34331306,9.999e-05,2]
[342415943,1731838243179,-1199.7768744,9.999e-05,2]
[342415944,1731838243255,-269.54733392,9.999e-05,2]
[342415945,1731838243333,-344.10978337,9.999e-05,2]
[342415946,1731838243477,-4471.17198732,9.999e-05,2]
[342415954,1731838246260,-494.73940417,9.999e-05,2]
[342415955,1731838246271,-1677.63532967,9.999e-05,2]
[342415956,1731838246282,-1285.49294905,9.999e-05,2]
[342415957,1731838327356,50000.0,0.00024,60]
[342415958,1731838376927,8204.48,0.00023,120]
[342415959,1731838399518,266.0,0.00024,60]
[342415961,1731838562846,2930.63,8.219e-05,2]
[342415963,1731838762669,50000.0,0.00024,60]
[342415968,1731838925960,2065.1420491,0.00024,60]
[342415969,1731838972256,50000.0,0.00024,60]
[342415970,1731839155140,1572.16483008,6.94e-05,2]
[342416001,1731839302878,501.06550631,0.00024,60]
[342416002,1731839303447,347.91485038,0.00024,60]
[342416003,1731839304273,500.0,0.00024,60]
[342416004,1731839304341,500.0,0.00024,60]
[342416005,1731839304539,316.01671356,0.00024,60]
[342416006,1731839304570,500.0,0.00024,60]
[342416007,1731839304605,501.58320467,0.00024,60]
[342416008,1731839304637,500.0,0.00024,60]
[342416009,1731839305193,500.0,0.00024,60]
[342416010,1731839305224,500.0,0.00024,60]
[342416011,1731839305275,500.0,0.00024,60]
[342416012,1731839305307,500.0,0.00024,60]
[342416013,1731839305739,500.0,0.00024,60]
[342416014,1731839305771,500.0,0.00024,60]
[342416015,1731839305821,500.0,0.00024,60]
[342416016,1731839305852,253.79518143,0.00024,60]
[342416017,1731839305963,500.0,0.00024,60]
[342416018,1731839306212,332.39268467,0.00024,60]
[342416019,1731839306462,500.99147098,0.00024,60]
[342416020,1731839306579,505.99703052,0.00024,60]
[342416021,1731839306715,690.69,0.00024,60]
[342416022,1731839306910,690.69,0.00024,60]
[342416023,1731839307209,690.69,0.00024,60]
[342416024,1731839307381,593.66985832,0.00024,60]
[342416025,1731839307497,690.69,0.00024,60]
[342416026,1731839307739,690.69,0.00024,60]
[342416027,1731839308340,690.69,0.00024,60]
[342416028,1731839308603,690.69,0.00024,60]
[342416029,1731839308871,690.69,0.00024,60]
[342416030,1731839309159,690.69,0.00024,60]
[342416031,1731839309263,503.13201827,0.00024,60]
[342416032,1731839309339,363.2109522,0.00024,60]
[342416033,1731839309419,690.69,0.00024,60]
[342416034,1731839309690,690.69,0.00024,60]
[342416035,1731839309944,690.69,0.00024,60]
[342416036,1731839310205,690.69,0.00024,60]
[342416037,1731839310482,690.69,0.00024,60]
[342416038,1731839310748,690.69,0.00024,60]
[342416039,1731839311010,690.69,0.00024,60]
[342416040,1731839311297,690.69,0.00024,60]
[342416041,1731839311363,500.0,0.00024,60]
[342416042,1731839311534,690.69,0.00024,60]
[342416043,1731839311830,690.69,0.00024,60]
[342416044,1731839312127,690.69,0.00024,60]
[342416045,1731839312247,500.0,0.00024,60]
[342416046,1731839312282,500.0,0.00024,60]
[342416047,1731839312399,690.69,0.00024,60]
[342416048,1731839312526,500.0,0.00024,60]
[342416049,1731839312559,500.0,0.00024,60]
[342416050,1731839312672,690.69,0.00024,60]
[342416051,1731839312789,500.0,0.00024,60]
[342416052,1731839312819,500.0,0.00024,60]
[342416053,1731839313035,500.0,0.00024,60]
[342416054,1731839313072,500.0,0.00024,60]
[342416055,1731839313214,690.69,0.00024,60]
[342416056,1731839313296,231.63179055,0.00024,60]
[342416057,1731839313343,500.0,0.00024,60]
[342416058,1731839313537,542.36213763,0.00024,60]
[342416059,1731839313574,690.83899804,0.00024,60]
[342416060,1731839313692,500.0,0.00024,60]
[342416061,1731839313865,500.0,0.00024,60]
[342416062,1731839313948,500.0,0.00024,60]
[342416063,1731839314085,500.0,0.00024,60]
[342416064,1731839314133,513.79086429,0.00024,60]
[342416065,1731839314550,500.0,0.00024,60]
[342416066,1731839314635,518.29931952,0.00024,60]
[342416067,1731839314700,500.0,0.00024,60]
[342416068,1731839314851,500.0,0.00024,60]
[342416069,1731839314881,500.0,0.00024,60]
[342416070,1731839315137,441.55458684,0.00024,60]
[342416071,1731839315518,500.0,0.00024,60]
[342416072,1731839315576,500.0,0.00024,60]
[342416073,1731839315733,500.0,0.00024,60]
[342416074,1731839315980,500.0,0.00024,60]
[342416075,1731839316012,500.0,0.00024,60]
[342416076,1731839316173,4660.85,0.00024,60]
[342416077,1731839316240,500.0,0.00024,60]
[342416078,1731839316440,4660.85,0.00024,60]
[342416079,1731839316516,500.0,0.00024,60]
[342416080,1731839316622,457.5,0.00024,60]
[342416081,1731839316692,4660.85,0.00024,60]
[342416082,1731839316854,221.16494476,0.00024,60]
[342416083,1731839316970,4660.85,0.00024,60]
[342416084,1731839317000,500.0,0.00024,60]
[342416085,1731839317223,4660.85,0.00024,60]
[342416086,1731839317252,500.0,0.00024,60]
[342416087,1731839317484,4660.85,0.00024,60]
[342416088,1731839317520,500.0,0.00024,60]
[342416089,1731839317797,500.0,0.00024,60]
[342416090,1731839317827,4660.85,0.00024,60]
[342416091,1731839318058,4660.85,0.00024,60]
[342416092,1731839318088,500.0,0.00024,60]
[342416093,1731839318336,500.0,0.00024,60]
[342416094,1731839318365,4660.85,0.00024,60]
[342416095,1731839318395,500.0,0.00024,60]
[342416096,1731839318618,4660.85,0.00024,60]
[342416097,1731839318649,500.0,0.00024,60]
[342416098,1731839318679,515.11414343,0.00024,60]
[342416099,1731839318767,500.0,0.00024,60]
[342416100,1731839318883,4660.85,0.00024,60]
[342416101,1731839318925,500.0,0.00024,60]
[342416102,1731839319038,298.06792322,0.00024,60]
[342416103,1731839319177,4660.85,0.00024,60]
[342416104,1731839319207,500.0,0.00024,60]
[342416105,1731839319454,500.0,0.00024,60]
[342416106,1731839319484,4660.85,0.00024,60]
[342416107,1731839319723,500.0,0.00024,60]
[342416108,1731839319753,4660.85,0.00024,60]
[342416109,1731839319976,500.0,0.00024,60]
[342416110,1731839320023,4660.85,0.00024,60]
[342416111,1731839320238,500.0,0.00024,60]
[342416112,1731839320301,4660.85,0.00024,60]
[342416113,1731839320717,500.0,0.00024,60]
[342416114,1731839320766,4660.85,0.00024,60]
[342416115,1731839320803,500.0,0.00024,60]
[342416116,1731839320850,4660.85,0.00024,60]
[342416117,1731839321077,500.0,0.00024,60]
[342416118,1731839321147,4660.85,0.00024,60]
[342416119,1731839321404,4660.85,0.00024,60]
[342416120,1731839321672,4660.85,0.00024,60]
[342416121,1731839322289,4660.85,0.00024,60]
[342416122,1731839322566,4660.85,0.00024,60]
[342416123,1731839322821,4660.86547171,0.00024,60]
[342416124,1731839324308,500.0,0.00024,60]
[342416125,1731839324342,500.0,0.00024,60]
[342416126,1731839324568,500.0,0.00024,60]
[342416127,1731839324599,500.0,0.00024,60]
[342416128,1731839324674,2784.09,8.219e-05,2]
[342416129,1731839324781,500.0,0.00024,60]
[342416130,1731839324851,500.0,0.00024,60]
[342416131,1731839325020,500.0,0.00024,60]
[342416132,1731839325122,500.0,0.00024,60]
[342416133,1731839325288,500.0,0.00024,60]
[342416134,1731839325411,500.0,0.00024,60]
[342416135,1731839325963,500.0,0.00024,60]
[342416136,1731839326011,500.0,0.00024,60]
[342416137,1731839326055,500.0,0.00024,60]
[342416138,1731839326098,500.0,0.00024,60]
[342416139,1731839326128,500.0,0.00024,60]
[342416140,1731839326162,500.0,0.00024,60]
[342416141,1731839326233,500.0,0.00024,60]
[342416142,1731839326262,500.0,0.00024,60]
[342416143,1731839326292,500.0,0.00024,60]
[342416144,1731839326324,500.0,0.00024,60]
[342416145,1731839326488,282.11071513,0.00024,60]
[342416146,1731839326535,500.0,0.00024,60]
[342416147,1731839326770,500.0,0.00024,60]
[342416148,1731839326809,500.0,0.00024,60]
[342416149,1731839326904,500.0,0.00024,60]
[342416150,1731839327041,500.0,0.00024,60]
[342416151,1731839327085,628.35703945,0.00024,60]
[342416152,1731839327164,500.0,0.00024,60]
[342416153,1731839327337,500.0,0.00024,60]
[342416154,1731839327431,500.0,0.00024,60]
[342416155,1731839327463,500.0,0.00024,60]
[342416156,1731839327574,500.70546882,0.00024,60]
[342416157,1731839327610,500.0,0.00024,60]
[342416158,1731839327692,500.0,0.00024,60]
[342416159,1731839327724,500.0,0.00024,60]
[342416160,1731839327858,500.0,0.00024,60]
[342416161,1731839327975,435.94848771,0.00024,60]
[342416162,1731839328341,500.0,0.00024,60]
[342416163,1731839328437,500.0,0.00024,60]
[342416164,1731839328489,328.24041919,0.00024,60]
[342416165,1731839328532,533.68176703,0.00024,60]
[342416168,1731839329584,510.92609666,0.00024,60]
[342416169,1731839329708,502.80731742,0.00024,60]
[342416170,1731839330128,500.0,0.00024,60]
[342416171,1731839330379,550.27030382,0.00024,60]
[342416172,1731839330422,500.0,0.00024,60]
[342416173,1731839330634,500.0,0.00024,60]
[342416174,1731839330705,500.0,0.00024,60]
[342416175,1731839330917,500.0,0.00024,60]
[342416176,1731839330968,500.0,0.00024,60]
[342416177,1731839331004,500.0,0.00024,60]
[342416178,1731839331178,500.0,0.00024,60]
[342416179,1731839331210,500.0,0.00024,60]
[342416180,1731839331423,500.0,0.00024,60]
[342416181,1731839331470,500.0,0.00024,60]
[342416182,1731839331551,500.0,0.00024,60]
[342416183,1731839331655,500.0,0.00024,60]
[342416184,1731839331693,500.0,0.00024,60]
[342416185,1731839331736,500.0,0.00024,60]
[342416186,1731839331928,347.09319995,0.00024,60]
[342416187,1731839331960,500.0,0.00024,60]
[342416188,1731839331992,500.0,0.00024,60]
[342416189,1731839332026,500.0,0.00024,60]
[342416190,1731839332212,587.49379999,0.00024,60]
[342416191,1731839332243,500.0,0.00024,60]
[342416192,1731839332297,500.0,0.00024,60]
[342416193,1731839332492,500.0,0.00024,60]
[342416194,1731839332582,500.0,0.00024,60]
[342416195,1731839332780,500.0,0.00024,60]
[342416196,1731839332928,500.0,0.00024,60]
[342416197,1731839333030,500.0,0.00024,60]
[342416198,1731839333108,500.0,0.00024,60]
[342416199,1731839333189,500.0,0.00024,60]
[342416200,1731839333294,510.35111197,0.00024,60]
[342416201,1731839333378,500.0,0.00024,60]
[342416202,1731839333449,500.0,0.00024,60]
[342416203,1731839333652,500.0,0.00024,60]
[342416204,1731839333705,500.0,0.00024,60]
[342416205,1731839333924,500.0,0.00024,60]
[342416206,1731839334065,500.0,0.00024,60]
[342416207,1731839334219,500.0,0.00024,60]
[342416208,1731839334250,500.0,0.00024,60]